fUSD/lending_fUSD_20250809
["ID","MTS","AMOUNT","RATE_DAILY","PERIOD"]
[378179731,1754769033780,-557.06007989,0.0002037,2]
[378179732,1754769033791,-165.65,0.00020378,2]
[378179733,1754769033800,-538.0,0.00020378,2]
[378179734,1754769033810,-359.68,0.00020378,2]
[378179735,1754769033820,-150.0,0.00020462,4]
[378179736,1754769033829,-150.0,0.00020462,4]
[378179737,1754769033839,-367.85,0.00020478,2]
[378179738,1754769033849,-538.0,0.00020478,2]
[378179739,1754769033858,-173.18,0.00020478,2]
[378179740,1754769033867,-169.13,0.00020478,2]
[378179741,1754769033877,-192.57,0.00020601,2]
[378179742,1754769033886,-1071.24,0.0002062,2]
[378179743,1754769033896,-589.87,0.00020643,8]
[378179744,1754769033906,-500.0,0.00020672,4]
[378179745,1754769033915,-250.0,0.00020672,2]
[378179746,1754769033926,-1090.0,0.00020689,2]
[378179747,1754769033936,-179.99,0.00020703,2]
[378179748,1754769033945,-168.15547606,0.00020706,2]
[378179749,1754769033955,-1915.232,0.00020706,2]
[378179750,1754769033964,-3297.66329356,0.00020806,2]
[378179751,1754769037451,-825.193057,0.00018745,2]
[378179752,1754769037465,-888.0,0.00019681,3]
[378179753,1754769037474,-866.13510245,0.00020386,3]
[378179754,1754769037506,-21.86489755,0.00020386,3]
[378179755,1754769037515,-752.26001455,0.00020806,2]
[378179756,1754769037524,-150.0,0.00020817,2]
[378179757,1754769037533,-28.41442057,0.00020863,2]
[378179758,1754769037548,-121.58557943,0.00020863,2]
[378179759,1754769037557,-1390.35606212,0.000209,2]
[378179760,1754769037585,-11573.21428507,0.000209,2]
[378179761,1754769037702,-46901.60125281,0.000209,2]
[378179762,1754769037712,-1000.0,0.000209,2]
[378179763,1754769037721,-954.30831784,0.000209,2]
[378179764,1754769037731,-150.0,0.000209,2]
[378179765,1754769037740,-150.0,0.000209,2]
[378179766,1754769037750,-5000.0,0.000209,2]
[378179767,1754769037759,-150.0,0.000209,2]
[378179768,1754769037770,-150.0,0.000209,2]
[378179769,1754769037779,-7946.0978614,0.000209,2]
[378179770,1754769037788,-172.91804602,0.000209,2]
[378179771,1754769037797,-150.0,0.000209,2]
[378179772,1754769037807,-150.0,0.000209,2]
[378179773,1754769037816,-150.0,0.000209,2]
[378179774,1754769037825,-300.76902666,0.000209,2]
[378179776,1754769037835,-589.87,0.00020917,9]
[378179778,1754769037845,-2659.74059644,0.00020937,2]
[378179780,1754769037854,-150.0,0.00020939,2]
[378179782,1754769037863,-262.35027524,0.00020941,2]
[378179784,1754769037874,-4085.64155681,0.00020942,2]
[378179786,1754769037883,-101459.8799523,0.00020942,2]
[378179788,1754769037893,-19999.99,0.00020951,2]
[378179790,1754769037902,-2529.02,0.00020951,2]
[378179791,1754769037911,-9999.99,0.00020951,2]
[378179792,1754769037920,-20160.59,0.00020951,2]
[378179793,1754769037929,-4085.64155681,0.00020955,2]
[378179794,1754769037938,-2659.74059644,0.00020961,2]
[378179795,1754769037948,-4085.64155681,0.00020965,2]
[378179796,1754769037957,-796.99,0.00020966,2]
[378179797,1754769037966,-796.99,0.00020966,2]
[378179798,1754769037975,-2659.74059644,0.00020969,2]
[378179799,1754769037985,-262.35027524,0.0002097,2]
[378179800,1754769037994,-262.35027524,0.0002097,2]
[378179801,1754769038003,-500.0,0.00020973,2]
[378179802,1754769038012,-500.0,0.00020973,2]
[378179803,1754769038021,-500.0,0.00020973,2]
[378179804,1754769038030,-262.35027524,0.00020973,2]
[378179805,1754769038039,-101459.8799523,0.00020975,2]
[378179806,1754769038050,-101459.8799523,0.00020976,2]
[378179807,1754769038059,-262.35027524,0.00020984,2]
[378179808,1754769038070,-150.0,0.00020986,4]
[378179809,1754769038082,-150.0,0.00020986,4]
[378179810,1754769038091,-150.0,0.00020986,4]
[378179811,1754769038101,-150.0,0.00020986,4]
[378179812,1754769038112,-150.0,0.00020986,4]
[378179813,1754769038123,-150.0,0.00020986,4]
[378179814,1754769038134,-1163.63,0.00020988,2]
[378179815,1754769038145,-1163.63,0.0002099,2]
[378179816,1754769038155,-4085.64155681,0.00020994,2]
[378179817,1754769038165,-101459.8799523,0.00020994,2]
[378179818,1754769038175,-101459.8799523,0.00020996,2]
[378179819,1754769038185,-4085.64155681,0.00020996,2]
[378179820,1754769038194,-2659.74059644,0.00020997,2]
[378179821,1754769038205,-150.0,0.00020998,2]
[378179822,1754769038215,-150.0,0.00020998,2]
[378179823,1754769038224,-2422.7091042,0.00020998,2]
[378179824,1754769038234,-466.8988166,0.00020998,2]
[378179825,1754769038243,-31490.9730733,0.00020998,2]
[378179826,1754769038252,-6259.7446494,0.00020998,2]
[378179827,1754769038262,-177.48717534,0.00020999,2]
[378179828,1754769038272,-228.08121692,0.00020999,2]
[378179829,1754769038281,-246.34695482,0.00020999,2]
[378179830,1754769038290,-2659.74059644,0.00020999,2]
[378179831,1754769038299,-21758.52663228,0.00021,2]
[378179832,1754769038308,-3001.53760701,0.00021,2]
[378179833,1754769038317,-3030723.65391925,0.00021,2]
[378179834,1754769038330,-489.599991,0.00021,2]
[378179835,1754769039075,-3642.76865845,0.00021,2]
[378179836,1754769039140,-888.0,0.00020181,3]
[378179837,1754769039150,-1620.01226651,0.00021,2]
[378179838,1754769039161,-597.969126,0.00021,2]
[378179839,1754769039180,-5690.0,0.00021,2]
[378179840,1754769039191,-11262.87,0.00021,2]
[378179842,1754769039546,-3700.35944005,0.00021,2]
[378179843,1754769039757,-999.21765633,0.00021,2]
[378179844,1754769039769,-1209.07386627,0.00021,2]
[378179845,1754769039812,-1081.17,0.00021,2]
[378179846,1754769039864,-471.2264678,0.00021,2]
[378179847,1754769039875,-1517.46946338,0.00021,2]
[378179892,1754769042535,-363.1335784,0.00020806,2]
[378179893,1754769042545,-585117.90731436,0.00021,2]
[378179897,1754769042747,-662.7,0.00021,2]
[378179898,1754769042802,-393.38047036,0.00021,2]
[378179915,1754769045637,-581.99720544,0.00021,2]
[378179916,1754769045648,-2912.5,0.00021,2]
[378179917,1754769045899,-584.62789754,0.00021,2]
[378179918,1754769045953,-55318.91091142,0.00021,2]
[378179998,1754769349454,180.68,0.00013699,2]
[378180163,1754770223107,8234.0,0.00024,120]
[378180165,1754770231849,-151.0,0.00018348,2]
[378180166,1754770231859,-151.0,0.00018348,2]
[378180167,1754770231869,-151.0,0.00018356,2]
[378180168,1754770231880,-150.0,0.00018888,2]
[378180169,1754770231890,-150.0,0.00018888,2]
[378180170,1754770231900,-150.0,0.00018888,2]
[378180171,1754770231909,-992.19,0.00019178,2]
[378180172,1754770231919,-165.52,0.00019412,2]
[378180173,1754770231929,-1449.29,0.00019578,2]
[378180174,1754770231941,-578.76,0.00019578,2]
[378180175,1754770231950,-1200.0,0.00019601,2]
[378180176,1754770231960,-300.0,0.00019601,2]
[378180177,1754770231970,-1008.12,0.00019602,2]
[378180178,1754770231980,-5000.01,0.00019603,2]
[378180179,1754770231989,-9111.99,0.00019603,2]
[378180180,1754770231999,-584.83,0.00019713,2]
[378180181,1754770232008,-192.57,0.00019755,2]
[378180182,1754770232018,-163.98,0.00019755,2]
[378180183,1754770232027,-1000.0,0.00019768,2]
[378180184,1754770232037,-170.0,0.00019805,7]
[378180185,1754770232046,-600.0,0.00019867,2]
[378180186,1754770232056,-429.31,0.00019867,2]
[378180187,1754770232065,-150.0,0.00019937,4]
[378180188,1754770232075,-250.0,0.00019961,2]
[378180189,1754770232084,-850.0,0.00019979,2]
[378180190,1754770232094,-57977.59,0.0001998,2]
[378180191,1754770232103,-642.0,0.00020007,2]
[378180192,1754770232112,-467.7,0.00020007,2]
[378180193,1754770232122,-150.0,0.000201,2]
[378180194,1754770232132,-1816.35906389,0.00020115,2]
[378180195,1754770232141,-239.84119403,0.00020115,2]
[378180196,1754770232151,-18468.25784384,0.00020127,2]
[378180197,1754770232163,-751.616,0.00020127,2]
[378180198,1754770232175,-2000.000002,0.00020127,2]
[378180199,1754770232206,-2680.12615416,0.00020127,2]
[378180200,1754770232215,-359.76179104,0.00020133,2]
[378180201,1754770232226,-151.0,0.00020133,2]
[378180203,1754770232235,-200.0,0.00020133,2]
[378180204,1754770232244,-151.0,0.00020133,2]
[378180205,1754770232254,-151.0,0.00020133,2]
[378180206,1754770232263,-160.0,0.00020133,2]
[378180207,1754770232273,-151.0,0.00020133,2]
[378180208,1754770232283,-148.32485785,0.00020187,2]
[378180211,1754770232298,-32.35514215,0.00020187,2]
[378180212,1754770232308,-582.35081585,0.00020241,2]
[378180215,1754770232327,-214.63918415,0.00020241,2]
[378180218,1754770232338,-467.7,0.00020241,2]
[378180219,1754770232347,-467.7,0.00020241,2]
[378180221,1754770232355,-796.99,0.00020341,2]
[378180223,1754770232365,-467.7,0.00020341,2]
[378180226,1754770232374,-371.37338659,0.0002037,2]
[378180228,1754770232383,-165.65,0.00020378,2]
[378180230,1754770232392,-330.63,0.00020378,2]
[378180232,1754770232401,-165.65,0.00020478,2]
[378180234,1754770232411,-538.0,0.00020478,2]
[378180236,1754770232421,-718.76,0.00020478,2]
[378180238,1754770232430,-992.19,0.00020641,2]
[378180240,1754770232439,-1441.29750297,0.00020724,2]
[378180242,1754770232450,-651.14349703,0.00020724,2]
[378180244,1754770232460,-153.806,0.00020724,2]
[378180247,1754770232469,-1451.71892583,0.00020799,2]
[378180249,1754770232479,-1451.71892575,0.0002081,2]
[378180250,1754770232488,-1451.71892575,0.00020821,2]
[378180252,1754770232497,-1451.71892575,0.00020833,2]
[378180254,1754770232507,-1451.71892575,0.00020844,2]
[378180256,1754770232518,-1451.71892575,0.00020855,2]
[378180258,1754770232528,-1451.71892575,0.00020866,2]
[378180260,1754770232538,-2500.0,0.00020873,2]
[378180263,1754770232549,-1451.71892575,0.00020878,2]
[378180264,1754770232558,-1451.71892575,0.00020889,2]
[378180267,1754770232568,-15869.0,0.00020896,2]
[378180268,1754770232578,-698.0609,0.00020898,2]
[378180271,1754770232588,-10679.361,0.00020898,2]
[378180273,1754770232598,-947.0085,0.000209,2]
[378180274,1754770232608,-5000.0,0.000209,2]
[378180276,1754770232617,-554.35752841,0.000209,2]
[378180279,1754770232628,-9221.50482442,0.000209,2]
[378180281,1754770232640,-4931.47370278,0.000209,2]
[378180284,1754770232661,-261.97118805,0.000209,2]
[378180286,1754770232673,-150.0,0.000209,2]
[378180288,1754770232682,-150.0,0.000209,2]
[378180290,1754770232691,-150.0,0.000209,2]
[378180292,1754770232701,-150.0,0.000209,2]
[378180294,1754770232711,-1451.71892575,0.000209,2]
[378180296,1754770232721,-13127.45152091,0.00020938,2]
[378180298,1754770232733,-1076.93167244,0.00020938,2]
[378180300,1754770232742,-14204.38319335,0.00020938,2]
[378180302,1754770232751,-571.98981798,0.00020938,2]
[378180304,1754770232761,-14204.38319335,0.0002094,2]
[378180306,1754770232770,-571.98981798,0.00020942,2]
[378180308,1754770232780,-372.36368353,0.00020945,2]
[378180310,1754770232789,-14204.38319335,0.00020948,2]
[378180312,1754770232799,-372.36368353,0.0002095,2]
[378180314,1754770232812,-119.44479512,0.00020951,2]
[378180317,1754770232823,-452.54502287,0.00020951,2]
[378180319,1754770232833,-571.98981798,0.00020951,2]
[378180321,1754770232843,-372.36368353,0.00020954,2]
[378180323,1754770232855,-4155.78471887,0.00020955,2]
[378180325,1754770232867,-3215.79887537,0.00020955,2]
[378180328,1754770232885,-6212.32243349,0.00020955,2]
[378180330,1754770232895,-372.36368353,0.00020962,2]
[378180332,1754770232904,-13583.90602773,0.00020969,2]
[378180333,1754770232913,-372.36368353,0.00020971,2]
[378180335,1754770232925,-402.1384627,0.00020973,2]
[378180337,1754770232934,-347.38013161,0.00020973,2]
[378180339,1754770232943,-508.1816931,0.00020973,2]
[378180341,1754770232953,-500.0,0.00020973,2]
[378180343,1754770232962,-500.0,0.00020973,2]
[378180345,1754770232971,-500.0,0.00020973,2]
[378180347,1754770232980,-500.0,0.00020973,2]
[378180349,1754770232990,-501.85899435,0.00020973,2]
[378180351,1754770232999,-503.33430262,0.00020973,2]
[378180353,1754770233008,-500.0,0.00020973,2]
[378180355,1754770233017,-200.77175326,0.00020973,2]
[378180357,1754770233027,-150.0,0.00020973,2]
[378180359,1754770233036,-200.0,0.00020973,2]
[378180361,1754770233046,-14204.38319335,0.00020975,2]
[378180363,1754770233055,-372.36368353,0.00020976,2]
[378180365,1754770233065,-571.98981799,0.00020978,2]
[378180367,1754770233075,-14204.38319335,0.00020979,2]
[378180369,1754770233085,-14204.38319335,0.00020979,2]
[378180371,1754770233095,-350.0,0.00020979,2]
[378180373,1754770233104,-571.98981799,0.0002098,2]
[378180375,1754770233114,-151.0,0.0002098,2]
[378180377,1754770233124,-151.0,0.0002098,2]
[378180379,1754770233134,-151.0,0.0002098,2]
[378180381,1754770233144,-151.0,0.0002098,2]
[378180383,1754770233154,-1215.0,0.0002098,2]
[378180385,1754770233164,-151.0,0.0002098,2]
[378180387,1754770233178,-151.0,0.0002098,2]
[378180389,1754770233188,-151.0,0.0002098,2]
[378180391,1754770233199,-1215.0,0.0002098,2]
[378180393,1754770233209,-151.0,0.0002098,2]
[378180395,1754770233218,-151.0,0.0002098,2]
[378180397,1754770233230,-1215.0,0.0002098,2]
[378180399,1754770233240,-1215.0,0.0002098,2]
[378180401,1754770233251,-151.0,0.0002098,2]
[378180403,1754770233261,-1031.87910058,0.0002098,2]
[378180405,1754770233271,-151.0,0.0002098,2]
[378180407,1754770233281,-151.0,0.0002098,2]
[378180409,1754770233292,-151.0,0.0002098,2]
[378180411,1754770233302,-151.0,0.0002098,2]
[378180413,1754770233311,-151.0,0.0002098,2]
[378180415,1754770233321,-151.0,0.0002098,2]
[378180417,1754770233331,-233.53240391,0.0002098,2]
[378180419,1754770233341,-151.0,0.0002098,2]
[378180421,1754770233353,-151.0,0.0002098,2]
[378180423,1754770233366,-151.0,0.0002098,2]
[378180425,1754770233376,-151.0,0.0002098,2]
[378180427,1754770233387,-151.0,0.0002098,2]
[378180429,1754770233398,-151.0,0.0002098,2]
[378180431,1754770233408,-151.0,0.0002098,2]
[378180433,1754770233420,-151.0,0.0002098,2]
[378180435,1754770233432,-151.0,0.0002098,2]
[378180437,1754770233441,-151.0,0.0002098,2]
[378180439,1754770233451,-151.0,0.0002098,2]
[378180441,1754770233461,-151.0,0.0002098,2]
[378180443,1754770233471,-151.0,0.0002098,2]
[378180445,1754770233480,-151.0,0.0002098,2]
[378180447,1754770233491,-151.0,0.0002098,2]
[378180449,1754770233502,-157.13155533,0.0002098,2]
[378180451,1754770233512,-282.54948572,0.0002098,2]
[378180453,1754770233522,-150.0,0.0002098,2]
[378180455,1754770233531,-150.0,0.0002098,2]
[378180457,1754770233541,-150.0,0.0002098,2]
[378180459,1754770233550,-150.0,0.0002098,2]
[378180461,1754770233560,-571.98981799,0.00020982,2]
[378180463,1754770233570,-372.36368353,0.00020983,2]
[378180465,1754770233579,-250.0,0.00020986,4]
[378180467,1754770233896,-150.00000001,0.00020986,4]
[378180468,1754770233918,-571.98981798,0.00020987,2]
[378180469,1754770233934,-372.36368353,0.00020988,2]
[378180470,1754770233944,-13583.90602773,0.00020988,2]
[378180471,1754770233954,-516.61848041,0.0002099,2]
[378180472,1754770233965,-14204.38319335,0.00020993,2]
[378180473,1754770233975,-372.36368353,0.00020993,2]
[378180474,1754770233986,-571.98981798,0.00020993,2]
[378180475,1754770233997,-3778.31757334,0.00020994,2]
[378180476,1754770234025,-380.2541582,0.00020994,2]
[378180480,1754770237666,-888.0,0.00019912,3]
[378180481,1754770237680,-500.0,0.00020897,2]
[378180482,1754770237690,-500.0,0.00020897,2]
[378180483,1754770237700,-26.561218,0.00020994,2]
[378180484,1754770237712,-1376.98147835,0.00020994,2]
[378180485,1754770237727,-896.10363,0.00020994,2]
[378180486,1754770237739,-7125.68796984,0.00020994,2]
[378180487,1754770237748,-1874.31203016,0.00020995,2]
[378180488,1754770237774,-12330.07116319,0.00020995,2]
[378180489,1754770237784,-571.98981799,0.00020995,2]
[378180490,1754770237794,-372.36368353,0.00020996,2]
[378180491,1754770237804,-500.0,0.00020997,2]
[378180492,1754770237815,-1379.5196138,0.00020998,2]
[378180493,1754770237825,-100608.9768082,0.00020998,2]
[378180494,1754770237834,-6535.0319708,0.00020998,2]
[378180495,1754770237844,-10944.5805819,0.00020998,2]
[378180496,1754770237856,-220.61124714,0.00020999,2]
[378180497,1754770237865,-14204.38319335,0.00020999,2]
[378180498,1754770237877,-13583.90602773,0.00021,2]
[378180499,1754770237888,-21758.52663228,0.00021,2]
[378180500,1754770237897,-5361.8015898,0.00021,2]
[378180501,1754770237908,-3125114.72103051,0.00021,2]
[378180502,1754770237999,-835.48750966,0.00021,2]
[378180639,1754770239722,-888.0,0.00020412,3]
[378180641,1754770239732,-248.38505565,0.00021,2]
[378180647,1754770239776,-1108.3048288,0.00021,2]
[378180649,1754770239787,-405.28,0.00021,2]
[378180654,1754770239834,-570.67222421,0.00021,2]
[378180656,1754770239846,-799.42332,0.00021,2]
[378180658,1754770239857,-2184.02311037,0.00021,2]
[378180661,1754770239868,-3868.250001,0.00021,2]
[378180663,1754770239880,-1912.41948248,0.00021,2]
[378180669,1754770239942,-3829.93892477,0.00021,2]
[378180671,1754770239953,-2140.088,0.00021,2]
[378180674,1754770239965,-18097.689245,0.00021,2]
[378180946,1754770242831,-250.0,0.0002002,2]
[378180948,1754770242842,-888.0,0.00020912,3]
[378180950,1754770242852,-266.02344905,0.00021,2]
[378180953,1754770242865,-317.98,0.00021,2]
[378180955,1754770242876,-279.66992043,0.00021,2]
[378180961,1754770242939,-8543.01584,0.00021,2]
[378180964,1754770242951,-514.8277707,0.00021,2]
[378180969,1754770242995,-39938.02379805,0.00021,2]
[378180982,1754770243117,-1826.66756755,0.00021,2]
[378180987,1754770243157,-1041.58591597,0.00021,2]
[378181109,1754770244362,10000.0,0.000235,120]
[378181283,1754770246116,-888.0,0.0002052,3]
[378181286,1754770246130,-363.1335784,0.00020573,2]
[378181288,1754770246142,-1327.58703502,0.00021,2]
[378181293,1754770246185,513.0,0.00017232,2]
[378181297,1754770246207,-738.011991,0.00021,2]
[378181320,1754770246418,-513.0,0.00019483,5]
[378181322,1754770246432,-22363.18,0.00020526,2]
[378181324,1754770246445,-28270.81257733,0.00021,2]
[378181327,1754770246461,-986.69118732,0.00021,2]
[378181329,1754770246477,-758.48733533,0.00021,2]
[378181332,1754770246493,-3787.79417064,0.00021,2]
[378181335,1754770246514,-3101.56521001,0.00021,2]
[378181338,1754770246529,-269.38241397,0.00021,2]
[378181341,1754770246550,-5327.22946454,0.00021,2]
[378182086,1754770257162,932.7,0.00023,120]
[378182090,1754770320302,190.22,0.00013699,2]
[378182093,1754770563848,500.0,0.00023,120]
[378182094,1754770579895,512.0,0.00023,120]
[378182110,1754771136300,2019.6575553,9e-05,2]
[378182113,1754771163210,1821.1924447,8e-05,2]
[378182123,1754771231693,1431.80264681,0.00015,2]
[378182124,1754771234615,217.53098603,0.00015,2]
[378182133,1754771319879,5560.759999,0.000151,2]
[378182134,1754771320101,1466.33591318,0.0001421,7]
[378182142,1754771395729,-151.1149204,0.000181,5]
[378182143,1754771396181,180.7,0.00013699,2]
[378182145,1754771398687,-196.56067485,0.000181,5]
[378182146,1754771405203,-300.0,0.000181,5]
[378182147,1754771408522,-161.63295825,0.000181,5]
[378182149,1754771413207,-347.82690478,0.000181,5]
[378182152,1754771415893,-158.20919811,0.000181,5]
[378182153,1754771421842,-266.21204023,0.000181,5]
[378182154,1754771423391,-374.35769687,0.000181,5]
[378182155,1754771427679,1418.12045498,0.000179,5]
[378182156,1754771427980,2171.87954502,0.000179,5]
[378182160,1754771431973,-498.64,0.0001846,2]
[378182161,1754771431983,-172.91,0.00018507,2]
[378182162,1754771431992,-151.0,0.0001851,2]
[378182163,1754771432001,-461.97777893,0.00018734,2]
[378182164,1754771432012,-51.02222107,0.00018734,2]
[378182165,1754771432021,-220.45841287,0.000188,6]
[378182166,1754771432083,-79.54158713,0.000188,6]
[378182167,1754771432094,-215.4,0.0001885,2]
[378182168,1754771432103,-294.98825287,0.000189,6]
[378182169,1754771432141,-305.01174713,0.000189,6]
[378182170,1754771432151,-155.62624139,0.000189,2]
[378182171,1754771432160,-168.70994978,0.000189,2]
[378182172,1754771432169,-82.32576489,0.00018958,2]
[378182173,1754771432181,-1362.0781881,0.00018958,2]
[378182174,1754771432191,-2410.52335224,0.00018959,2]
[378182175,1754771432201,-500.0,0.00018973,2]
[378182176,1754771432210,-500.0,0.00018973,2]
[378182177,1754771432219,-500.0,0.00018973,2]
[378182178,1754771432228,-269.74285865,0.00018973,2]
[378182179,1754771432237,-501.37732755,0.00018973,2]
[378182180,1754771432248,-500.0,0.00018973,2]
[378182181,1754771432259,-503.03485559,0.00018973,2]
[378182182,1754771432268,-850.0,0.00018999,2]
[378182183,1754771432278,-356.75364185,0.00018999,2]
[378182184,1754771432287,-177.48717534,0.00018999,2]
[378182185,1754771432298,-248.03726304,0.00018999,2]
[378182186,1754771432308,-198.01830394,0.00018999,2]
[378182187,1754771432318,-1215.71667021,0.00019,2]
[378182188,1754771432349,-1419.71646591,0.00019,2]
[378182189,1754771432366,-4933.96149444,0.00019,2]
[378182192,1754771432389,-51954.96344303,0.00019,2]
[378182248,1754771437994,-5238.6679401,0.00019,2]
[378182255,1754771438293,-5372.54566772,0.00019,2]
[378182258,1754771438317,-6427.11289178,0.00019,2]
[378182261,1754771438334,-1176732.157389,0.00019,2]
[378182263,1754771438348,-7003.27600666,0.00019,2]
[378182265,1754771438358,-3015.54065554,0.00019,2]
[378182270,1754771438389,-432.05231657,0.00019,2]
[378182273,1754771438400,-3758.77398087,0.00019,2]
[378182276,1754771438411,-2625.60069894,0.00019,2]
[378182284,1754771438478,-104103.85944361,0.00019,2]
[378182286,1754771438487,-35805.60827257,0.00019,2]
[378182288,1754771438497,-534197.33402099,0.00019,2]
[378182289,1754771438506,-2111.6111941,0.00019,2]
[378182290,1754771438515,-307.39,0.00019164,2]
[378182291,1754771438524,-1444.40395297,0.00019174,2]
[378182292,1754771438533,-2410.52335219,0.00019175,2]
[378182293,1754771438543,-892.97,0.00019178,2]
[378182294,1754771438552,-168.70994976,0.000193,2]
[378182295,1754771438561,-29999.99,0.00019339,2]
[378182296,1754771438571,-4242.0,0.0001937,2]
[378182297,1754771438581,-1444.40395297,0.0001939,2]
[378182298,1754771438591,-2410.52335219,0.0001939,2]
[378182299,1754771438601,-1444.40395297,0.00019605,2]
[378182300,1754771438611,-2410.52335219,0.00019606,2]
[378182301,1754771438621,-14491.14,0.00019631,2]
[378182302,1754771438630,-985.0,0.00019645,2]
[378182303,1754771438640,-2775.42,0.00019657,2]
[378182304,1754771438649,-292.41,0.00019669,2]
[378182305,1754771438658,-168.70994976,0.000197,2]
[378182306,1754771438668,-600.0,0.00019739,2]
[378182307,1754771438678,-600.0,0.00019739,2]
[378182308,1754771438687,-172.91,0.00019741,2]
[378182310,1754771438696,-1000.0,0.0001982,2]
[378182312,1754771438706,-1444.40395297,0.00019821,2]
[378182314,1754771438716,-2410.52335219,0.00019822,2]
[378182316,1754771438725,-239.84119403,0.00019956,2]
[378182318,1754771438734,-4662.51281194,0.00019956,2]
[378182320,1754771438743,-359.76179104,0.00019968,2]
[378182322,1754771438753,-500.0,0.00019968,2]
[378182324,1754771438762,-160.0,0.00019968,2]
[378182326,1754771438772,-500.0,0.00019968,2]
[378182327,1754771438781,-600.0,0.00019968,2]
[378182330,1754771438791,-500.0,0.00019968,2]
[378182331,1754771438800,-500.0,0.00019968,2]
[378182333,1754771438809,-500.0,0.00019968,2]
[378182335,1754771438818,-500.0,0.00019968,2]
[378182337,1754771438827,-500.0,0.00019968,2]
[378182339,1754771438837,-500.0,0.00019968,2]
[378182341,1754771438846,-500.0,0.00019968,2]
[378182343,1754771438855,-300.0,0.00019968,2]
[378182345,1754771438865,-500.0,0.00019968,2]
[378182347,1754771438874,-151.0,0.00019968,2]
[378182349,1754771438883,-300.0,0.00019968,2]
[378182351,1754771438893,-500.0,0.00019968,2]
[378182353,1754771438902,-151.0,0.00019968,2]
[378182355,1754771438911,-300.0,0.00019968,2]
[378182357,1754771438920,-500.0,0.00019968,2]
[378182359,1754771438929,-151.0,0.00019968,2]
[378182361,1754771438938,-300.0,0.00019968,2]
[378182363,1754771438947,-500.0,0.00019968,2]
[378182365,1754771438956,-151.0,0.00019968,2]
[378182366,1754771438966,-300.0,0.00019968,2]
[378182369,1754771438976,-500.0,0.00019968,2]
[378182371,1754771438986,-151.0,0.00019968,2]
[378182373,1754771438995,-344.55063413,0.00019968,2]
[378182374,1754771439003,-500.0,0.00019968,2]
[378182376,1754771439013,-151.0,0.00019968,2]
[378182379,1754771439023,-500.0,0.00019968,2]
[378182380,1754771439032,-500.0,0.00019968,2]
[378182383,1754771439041,-151.0,0.00019968,2]
[378182384,1754771439051,-151.0,0.00019968,2]
[378182386,1754771439061,-500.0,0.00019968,2]
[378182389,1754771439070,-151.0,0.00019968,2]
[378182391,1754771439080,-500.0,0.00019968,2]
[378182392,1754771439090,-151.0,0.00019968,2]
[378182395,1754771439100,-500.0,0.00019968,2]
[378182396,1754771439110,-151.0,0.00019968,2]
[378182399,1754771439119,-500.0,0.00019968,2]
[378182400,1754771439129,-500.0,0.00019968,2]
[378182403,1754771439139,-375.7252522,0.00019968,2]
[378182405,1754771439149,-500.0,0.00019968,2]
[378182407,1754771439159,-500.0,0.00019968,2]
[378182409,1754771439169,-500.0,0.00019968,2]
[378182411,1754771439178,-500.0,0.00019968,2]
[378182413,1754771439187,-500.0,0.00019968,2]
[378182414,1754771439198,-500.0,0.00019968,2]
[378182416,1754771439207,-500.0,0.00019968,2]
[378182419,1754771439218,-500.0,0.00019968,2]
[378182421,1754771439228,-500.0,0.00019968,2]
[378182423,1754771439237,-500.0,0.00019968,2]
[378182424,1754771439251,-500.0,0.00019968,2]